fUST/lending_fUST_20250717
["ID","MTS","AMOUNT","RATE_DAILY","PERIOD"]
[372761118,1752751839094,-460.0,0.00017458,2]
[372761119,1752751839107,-460.0,0.00017459,2]
[372761120,1752751839117,-460.0,0.00017459,2]
[372761121,1752751839127,-460.0,0.00017459,2]
[372761122,1752751839137,-460.0,0.00017459,2]
[372761123,1752751839147,-288.29456536,0.00017459,2]
[372761124,1752751839156,-460.0,0.00017459,2]
[372761125,1752751839167,-1182.61,0.00017459,2]
[372761126,1752751839177,-1133.33,0.00017459,2]
[372761127,1752751839187,-190.60576346,0.00017459,2]
[372761128,1752751839197,-460.0,0.00017459,2]
[372761129,1752751839207,-507.41,0.00017459,2]
[372761130,1752751839219,-500.0,0.00017459,2]
[372761131,1752751839229,-206.77,0.00017459,2]
[372761132,1752751839240,-460.0,0.00017459,2]
[372761133,1752751839251,-342.06152639,0.00017459,2]
[372761134,1752751839261,-460.0,0.00017459,2]
[372761135,1752751839271,-460.0,0.00017459,2]
[372761136,1752751839281,-460.0,0.00017459,2]
[372761137,1752751839291,-752.75,0.00017459,2]
[372761138,1752751839300,-460.0,0.00017459,2]
[372761139,1752751839310,-460.0,0.00017459,2]
[372761140,1752751839320,-460.0,0.00017459,2]
[372761141,1752751839332,-460.0,0.00017459,2]
[372761142,1752751839341,-595.36,0.00017459,2]
[372761143,1752751839351,-460.0,0.00017459,2]
[372761144,1752751839360,-460.0,0.00017459,2]
[372761145,1752751839371,-596.24,0.00017459,2]
[372761146,1752751839381,-460.0,0.00017459,2]
[372761147,1752751839390,-536.44,0.00017459,2]
[372761148,1752751839400,-362.1091208,0.00017459,2]
[372761149,1752751839410,-460.0,0.00017459,2]
[372761150,1752751839419,-470.42,0.00017459,2]
[372761151,1752751839429,-460.0,0.00017459,2]
[372761152,1752751839438,-460.0,0.00017459,2]
[372761153,1752751839449,-460.0,0.00017459,2]
[372761154,1752751839458,-3846.76,0.00017459,2]
[372761155,1752751839468,-599.58,0.00017459,2]
[372761156,1752751839478,-460.0,0.00017459,2]
[372761157,1752751839487,-1004.86,0.00017459,2]
[372761158,1752751839497,-460.0,0.00017459,2]
[372761159,1752751839507,-460.0,0.00017459,2]
[372761160,1752751839516,-576.28,0.00017459,2]
[372761161,1752751839526,-1477.75,0.00017459,2]
[372761162,1752751839536,-460.0,0.0001746,2]
[372761163,1752751839546,-462.53617757,0.0001746,2]
[372761164,1752751839557,-460.0,0.0001746,2]
[372761165,1752751839566,-460.0,0.0001746,2]
[372761166,1752751839576,-252.28445255,0.0001746,2]
[372761167,1752751839585,-460.0,0.0001746,2]
[372761168,1752751839595,-460.0,0.0001746,2]
[372761169,1752751839604,-336.77607404,0.0001746,2]
[372761170,1752751839614,-568.13398783,0.0001746,2]
[372761171,1752751839623,-460.0,0.0001746,2]
[372761172,1752751839633,-460.0,0.0001746,2]
[372761173,1752751839643,-460.0,0.0001746,2]
[372761174,1752751839652,-460.0,0.0001746,2]
[372761175,1752751839661,-460.0,0.0001746,2]
[372761176,1752751839671,-460.0,0.0001746,2]
[372761177,1752751839681,-460.0,0.0001746,2]
[372761178,1752751839690,-460.0,0.0001746,2]
[372761180,1752751839895,-2034.08,0.0001746,2]
[372761181,1752751839906,-460.0,0.0001746,2]
[372761182,1752751839916,-908.51,0.0001746,2]
[372761183,1752751839925,-962.34,0.0001746,2]
[372761184,1752751839934,-4626.45,0.0001746,2]
[372761185,1752751839944,-810.85,0.0001746,2]
[372761186,1752751839954,-460.0,0.0001746,2]
[372761187,1752751839965,-247.2,0.0001746,2]
[372761188,1752751839974,-460.0,0.0001746,2]
[372761189,1752751839983,-460.0,0.0001746,2]
[372761190,1752751839993,-1245.54,0.0001746,2]
[372761191,1752751840003,-460.0,0.00017462,2]
[372761192,1752751840014,-460.0,0.00017462,2]
[372761193,1752751840024,-412.59613661,0.00017462,2]
[372761194,1752751840033,-460.0,0.00017462,2]
[372761195,1752751840043,-458.07108097,0.00017462,2]
[372761196,1752751840052,-460.0,0.00017462,2]
[372761197,1752751840062,-460.0,0.00017462,2]
[372761198,1752751840071,-460.0,0.00017462,2]
[372761199,1752751840081,-460.0,0.00017462,2]
[372761200,1752751840092,-370000.0,0.00017463,2]
[372761202,1752751840102,-517.09736448,0.00017473,2]
[372761204,1752751840111,-500.0,0.00017473,2]
[372761205,1752751840120,-327.239432,0.00017473,2]
[372761206,1752751840130,-500.0,0.00017473,2]
[372761208,1752751840139,-601.47902735,0.00017473,2]
[372761210,1752751840149,-500.0,0.00017473,2]
[372761212,1752751840158,-500.0,0.00017473,2]
[372761213,1752751840167,-500.0,0.00017473,2]
[372761214,1752751840177,-211.00153815,0.00017473,2]
[372761215,1752751840186,-486.59618896,0.00017473,2]
[372761216,1752751840195,-500.0,0.00017473,2]
[372761217,1752751840205,-486.95092444,0.00017473,2]
[372761218,1752751840216,-500.0,0.00017473,2]
[372761219,1752751840226,-500.0,0.00017473,2]
[372761220,1752751840236,-500.0,0.00017473,2]
[372761221,1752751840246,-178.87661116,0.00017473,2]
[372761222,1752751840256,-500.0,0.00017473,2]
[372761223,1752751840267,-301.0,0.00017473,2]
[372761224,1752751840277,-500.0,0.00017473,2]
[372761225,1752751840286,-500.0,0.00017473,2]
[372761226,1752751840296,-460.0,0.00017561,2]
[372761227,1752751840306,-460.0,0.00017561,2]
[372761228,1752751840316,-460.0,0.00017561,2]
[372761229,1752751840327,-460.0,0.00017561,2]
[372761230,1752751840339,-460.0,0.00017562,2]
[372761231,1752751840350,-460.0,0.00017562,2]
[372761232,1752751840360,-460.0,0.00017562,2]
[372761233,1752751840381,-460.0,0.00017562,2]
[372761234,1752751840393,-460.0,0.00017562,2]
[372761235,1752751840404,-477.94787217,0.00017562,2]
[372761236,1752751840415,-460.0,0.00017562,2]
[372761237,1752751840425,-499.85,0.00017562,2]
[372761238,1752751840435,-460.0,0.00017562,2]
[372761239,1752751840446,-460.0,0.00017562,2]
[372761240,1752751840456,-460.0,0.00017562,2]
[372761241,1752751840468,-460.0,0.00017562,2]
[372761242,1752751840478,-460.0,0.00017562,2]
[372761243,1752751840489,-460.0,0.00017566,2]
[372761244,1752751840500,-490.48446938,0.00017566,2]
[372761245,1752751840512,-460.0,0.00017566,2]
[372761246,1752751840524,-460.0,0.00017566,2]
[372761247,1752751840535,-460.0,0.00017566,2]
[372761248,1752751840546,-460.0,0.00017566,2]
[372761249,1752751840556,-460.0,0.00017566,2]
[372761250,1752751840567,-460.0,0.00017566,2]
[372761251,1752751840577,-460.0,0.00017566,2]
[372761252,1752751840587,-390.30082896,0.00017566,2]
[372761253,1752751840597,-460.0,0.00017566,2]
[372761254,1752751840607,-460.0,0.00017566,2]
[372761255,1752751840617,-460.0,0.00017566,2]
[372761256,1752751840627,-460.0,0.00017566,2]
[372761257,1752751840637,-460.0,0.00017566,2]
[372761258,1752751840648,-500.0,0.00017584,2]
[372761259,1752751840659,-1200.0,0.00017673,2]
[372761260,1752751840669,-460.0,0.00017728,2]
[372761261,1752751840680,-460.0,0.00017728,2]
[372761262,1752751840690,-460.0,0.00017728,2]
[372761263,1752751840701,-1330.66,0.00017728,2]
[372761264,1752751840712,-1876.44,0.00017728,2]
[372761265,1752751840722,-2406.28,0.00017731,2]
[372761266,1752751840733,-460.0,0.00017731,2]
[372761267,1752751840744,-915.21,0.00017731,2]
[372761268,1752751840753,-535.23,0.00017731,2]
[372761269,1752751840763,-2033.53,0.00017731,2]
[372761270,1752751840772,-460.0,0.00017731,2]
[372761271,1752751840782,-740.79,0.00017731,2]
[372761272,1752751840791,-460.0,0.00017731,2]
[372761273,1752751840801,-475.95,0.00017731,2]
[372761274,1752751840811,-1059.14,0.00017731,2]
[372761275,1752751840822,-460.0,0.00017731,2]
[372761276,1752751840832,-630.62,0.00017731,2]
[372761278,1752751840842,-460.0,0.00017731,2]
[372761280,1752751840852,-484.65,0.00017731,2]
[372761282,1752751840862,-399.57462362,0.00017733,2]
[372761283,1752751840872,-460.0,0.00017733,2]
[372761284,1752751840882,-460.0,0.00017733,2]
[372761285,1752751840892,-1182.61,0.00017733,2]
[372761286,1752751840902,-1133.33,0.00017733,2]
[372761287,1752751840911,-460.0,0.00017733,2]
[372761288,1752751840922,-460.0,0.00017733,2]
[372761289,1752751840932,-460.0,0.00017733,2]
[372761290,1752751840942,-460.0,0.00017733,2]
[372761291,1752751840951,-460.0,0.00017733,2]
[372761292,1752751840967,-752.75,0.00017733,2]
[372761293,1752751840977,-460.0,0.00017733,2]
[372761294,1752751840988,-460.0,0.00017733,2]
[372761295,1752751840997,-460.0,0.00017733,2]
[372761296,1752751841007,-460.0,0.00017733,2]
[372761297,1752751841017,-595.36,0.00017733,2]
[372761298,1752751841027,-460.0,0.00017733,2]
[372761299,1752751841036,-596.24,0.00017733,2]
[372761300,1752751841046,-460.0,0.00017733,2]
[372761301,1752751841055,-536.44,0.00017733,2]
[372761302,1752751841065,-470.42,0.00017733,2]
[372761303,1752751841075,-497.97926168,0.00017733,2]
[372761304,1752751841085,-460.0,0.00017733,2]
[372761305,1752751841095,-460.0,0.00017733,2]
[372761306,1752751841105,-3846.76,0.00017733,2]
[372761307,1752751841115,-599.58,0.00017733,2]
[372761308,1752751841124,-460.0,0.00017733,2]
[372761309,1752751841134,-1004.86,0.00017733,2]
[372761310,1752751841144,-460.0,0.00017733,2]
[372761311,1752751841153,-460.0,0.00017733,2]
[372761312,1752751841163,-576.28,0.00017733,2]
[372761313,1752751841172,-1477.75,0.00017733,2]
[372761314,1752751841181,-460.0,0.00017734,2]
[372761315,1752751841191,-460.0,0.00017734,2]
[372761316,1752751841201,-460.0,0.00017734,2]
[372761317,1752751841213,-460.0,0.00017734,2]
[372761318,1752751841222,-2034.08,0.00017734,2]
[372761319,1752751841232,-460.0,0.00017734,2]
[372761320,1752751841242,-908.51,0.00017734,2]
[372761321,1752751841251,-962.34,0.00017734,2]
[372761322,1752751841261,-4626.45,0.00017734,2]
[372761323,1752751841270,-810.85,0.00017734,2]
[372761324,1752751841280,-460.0,0.00017734,2]
[372761325,1752751841290,-1245.54,0.00017734,2]
[372761326,1752751841300,-460.0,0.00017736,2]
[372761327,1752751841310,-460.0,0.00017736,2]
[372761328,1752751841319,-460.0,0.00017736,2]
[372761329,1752751841334,-460.0,0.00017836,2]
[372761330,1752751841344,-460.0,0.00017836,2]
[372761331,1752751841354,-499.85,0.00017836,2]
[372761332,1752751841365,-285.7777226,0.00017836,2]
[372761333,1752751841375,-460.0,0.00017836,2]
[372761334,1752751841385,-242.08640295,0.00018,2]
[372761335,1752751841395,-5014.0082651,0.00018,2]
[372761336,1752751841406,-13059.58150779,0.00018,2]
[372761337,1752751841417,-460.0,0.00018002,2]
[372761338,1752751841427,-460.0,0.00018002,2]
[372761339,1752751841436,-460.0,0.00018002,2]
[372761340,1752751841446,-1330.66,0.00018002,2]
[372761341,1752751841456,-1876.44,0.00018002,2]
[372761342,1752751841468,-2406.28,0.00018005,2]
[372761343,1752751841478,-460.0,0.00018005,2]
[372761344,1752751841487,-915.21,0.00018005,2]
[372761345,1752751841497,-535.23,0.00018005,2]
[372761346,1752751841507,-2033.53,0.00018005,2]
[372761347,1752751841516,-460.0,0.00018005,2]
[372761348,1752751841527,-740.79,0.00018005,2]
[372761349,1752751841536,-314.90950628,0.00018005,2]
[372761350,1752751841546,-475.95,0.00018005,2]
[372761351,1752751841555,-1059.14,0.00018005,2]
[372761352,1752751841566,-460.0,0.00018005,2]
[372761353,1752751841577,-630.62,0.00018005,2]
[372761354,1752751841588,-460.0,0.00018005,2]
[372761355,1752751841598,-484.65,0.00018005,2]
[372761356,1752751841609,-466.30369646,0.00018007,2]
[372761357,1752751841620,-1182.61,0.00018007,2]
[372761358,1752751841631,-1133.33,0.00018007,2]
[372761359,1752751841646,-554.26,0.00018007,2]
[372761360,1752751841656,-549.67264018,0.00018007,2]
[372761361,1752751841667,-460.0,0.00018007,2]
[372761362,1752751841678,-460.0,0.00018007,2]
[372761363,1752751841689,-460.0,0.00018007,2]
[372761364,1752751841700,-752.75,0.00018007,2]
[372761365,1752751841710,-460.0,0.00018007,2]
[372761366,1752751841720,-460.0,0.00018007,2]
[372761367,1752751841729,-460.0,0.00018007,2]
[372761368,1752751841739,-460.0,0.00018007,2]
[372761369,1752751841749,-595.36,0.00018007,2]
[372761370,1752751841758,-539.16516269,0.00018007,2]
[372761371,1752751841768,-596.24,0.00018007,2]
[372761372,1752751841778,-460.0,0.00018007,2]
[372761373,1752751841787,-536.44,0.00018007,2]
[372761374,1752751841797,-470.42,0.00018007,2]
[372761375,1752751841806,-460.0,0.00018007,2]
[372761376,1752751841815,-460.0,0.00018007,2]
[372761377,1752751841825,-3846.76,0.00018007,2]
[372761378,1752751841836,-599.58,0.00018007,2]
[372761379,1752751841845,-460.0,0.00018007,2]
[372761380,1752751841855,-1004.86,0.00018007,2]
[372761381,1752751841865,-460.0,0.00018007,2]
[372761382,1752751841875,-460.0,0.00018007,2]
[372761383,1752751841884,-576.28,0.00018007,2]
[372761384,1752751841894,-1477.75,0.00018007,2]
[372761385,1752751841904,-460.0,0.00018008,2]
[372761386,1752751841914,-460.0,0.00018008,2]
[372761387,1752751841923,-460.0,0.00018008,2]
[372761388,1752751841933,-2034.08,0.00018008,2]
[372761389,1752751841943,-460.0,0.00018008,2]
[372761390,1752751841953,-908.51,0.00018008,2]
[372761391,1752751841963,-962.34,0.00018008,2]
[372761392,1752751841973,-4626.45,0.00018008,2]
[372761393,1752751841983,-810.85,0.00018008,2]
[372761394,1752751841993,-460.0,0.00018008,2]
[372761395,1752751842002,-1245.54,0.00018008,2]
[372761396,1752751842011,-400.0,0.0001801,2]
[372761397,1752751842021,-1000.0,0.00018021,2]
[372761398,1752751842031,-1000.0,0.00018021,2]
[372761399,1752751842040,-1000.0,0.00018021,2]
[372761400,1752751842050,-1000.0,0.00018021,2]
[372761401,1752751842059,-1000.0,0.00018021,2]
[372761402,1752751842068,-1000.0,0.00018021,2]
[372761403,1752751842078,-500.0,0.00018021,2]
[372761404,1752751842087,-460.0,0.0001811,2]
[372761405,1752751842098,-460.0,0.0001811,2]
[372761406,1752751842113,-499.85,0.0001811,2]
[372761407,1752751842122,-468.75273965,0.0001811,2]
[372761408,1752751842132,-502.60087761,0.00018221,2]
[372761409,1752751842141,-504.22089586,0.00018221,2]
[372761410,1752751842150,-500.0,0.00018274,2]
[372761411,1752751842159,-500.0,0.00018274,2]
[372761412,1752751842169,-500.0,0.00018274,2]
[372761413,1752751842180,-500.0,0.00018274,2]
[372761414,1752751842191,-460.00191781,0.00018276,2]
[372761415,1752751842200,-151.35,0.00018276,2]
[372761416,1752751842211,-460.0,0.00018276,2]
[372761417,1752751842221,-1330.66,0.00018276,2]
[372761418,1752751842230,-1876.44,0.00018276,2]
[372761419,1752751842240,-2406.28,0.00018279,2]
[372761420,1752751842250,-460.0,0.00018279,2]
[372761421,1752751842259,-915.21,0.00018279,2]
[372761422,1752751842269,-535.23,0.00018279,2]
[372761423,1752751842278,-2033.53,0.00018279,2]
[372761424,1752751842287,-460.0,0.00018279,2]
[372761425,1752751842297,-740.79,0.00018279,2]
[372761426,1752751842306,-475.95,0.00018279,2]
[372761427,1752751842316,-1059.14,0.00018279,2]
[372761428,1752751842326,-460.0,0.00018279,2]
[372761429,1752751842338,-630.62,0.00018279,2]
[372761430,1752751842348,-460.0,0.00018279,2]
[372761431,1752751842358,-484.65,0.00018279,2]
[372761432,1752751842367,-1182.61,0.00018281,2]
[372761433,1752751842377,-1133.33,0.00018281,2]
[372761434,1752751842387,-460.0,0.00018281,2]
[372761435,1752751842396,-460.0,0.00018281,2]
[372761436,1752751842407,-460.0,0.00018281,2]
[372761437,1752751842417,-752.75,0.00018281,2]
[372761438,1752751842427,-460.0,0.00018281,2]
[372761439,1752751842436,-460.0,0.00018281,2]
[372761440,1752751842446,-460.0,0.00018281,2]
[372761441,1752751842456,-460.0,0.00018281,2]
[372761442,1752751842467,-595.36,0.00018281,2]
[372761443,1752751842477,-596.24,0.00018281,2]
[372761444,1752751842487,-460.0,0.00018281,2]
[372761445,1752751842498,-536.44,0.00018281,2]
[372761446,1752751842511,-470.42,0.00018281,2]
[372761447,1752751842521,-460.0,0.00018281,2]
[372761448,1752751842531,-460.0,0.00018281,2]
[372761449,1752751842542,-3846.76,0.00018281,2]
[372761450,1752751842553,-599.58,0.00018281,2]
[372761451,1752751842564,-460.0,0.00018281,2]
[372761452,1752751842576,-1004.86,0.00018281,2]
[372761453,1752751842586,-460.0,0.00018281,2]
[372761454,1752751842597,-576.28,0.00018281,2]
[372761455,1752751842607,-460.0,0.00018282,2]
[372761456,1752751842618,-460.0,0.00018282,2]
[372761457,1752751842627,-460.0,0.00018282,2]
[372761458,1752751842638,-2034.08,0.00018282,2]
[372761459,1752751842649,-460.0,0.00018282,2]
[372761460,1752751842659,-908.51,0.00018282,2]
[372761461,1752751842669,-962.34,0.00018282,2]
[372761462,1752751842679,-4626.45,0.00018282,2]
[372761463,1752751842689,-810.85,0.00018282,2]
[372761464,1752751842698,-460.0,0.00018282,2]
[372761465,1752751842708,-1245.54,0.00018282,2]
[372761466,1752751842720,-800.0,0.00018367,2]
[372761467,1752751842730,-460.0,0.00018384,2]
[372761468,1752751842741,-460.0,0.00018384,2]
[372761469,1752751842761,-499.85,0.00018384,2]
[372761470,1752751842772,-1007.83630533,0.00018394,2]
[372761471,1752751842781,-500.0,0.00018509,2]
[372761472,1752751842791,-460.0,0.0001855,2]
[372761474,1752751842801,-1330.66,0.0001855,2]
[372761477,1752751842810,-1876.44,0.0001855,2]
[372761479,1752751842820,-2406.28,0.00018553,2]
[372761480,1752751842830,-244.73235751,0.00018553,2]
[372761481,1752751842840,-915.21,0.00018553,2]
[372761482,1752751842850,-535.23,0.00018553,2]
[372761483,1752751842859,-2033.53,0.00018553,2]
[372761484,1752751842869,-460.0,0.00018553,2]
[372761485,1752751842879,-740.79,0.00018553,2]
[372761486,1752751842890,-475.95,0.00018553,2]
[372761487,1752751842900,-1059.14,0.00018553,2]
[372761489,1752751842910,-460.0,0.00018553,2]
[372761490,1752751842920,-630.62,0.00018553,2]
[372761491,1752751842930,-460.0,0.00018553,2]
[372761492,1752751842940,-484.65,0.00018553,2]
[372761493,1752751842950,-1182.61,0.00018555,2]
[372761494,1752751842960,-1133.33,0.00018555,2]
[372761495,1752751842970,-460.0,0.00018555,2]
[372761496,1752751842980,-460.0,0.00018555,2]
[372761497,1752751842990,-752.75,0.00018555,2]
[372761498,1752751843000,-460.0,0.00018555,2]
[372761499,1752751843010,-460.0,0.00018555,2]
[372761500,1752751843019,-460.0,0.00018555,2]
[372761501,1752751843029,-460.0,0.00018555,2]
[372761502,1752751843038,-595.36,0.00018555,2]
[372761503,1752751843048,-596.24,0.00018555,2]
[372761504,1752751843058,-234.21922923,0.00018555,2]
[372761505,1752751843067,-536.44,0.00018555,2]
[372761506,1752751843077,-470.42,0.00018555,2]
[372761507,1752751843087,-460.0,0.00018555,2]
[372761508,1752751843097,-460.0,0.00018555,2]
[372761509,1752751843107,-3846.76,0.00018555,2]
[372761510,1752751843117,-599.58,0.00018555,2]
[372761511,1752751843126,-460.0,0.00018555,2]
[372761513,1752751843136,-1004.86,0.00018555,2]
[372761514,1752751843145,-460.0,0.00018555,2]
[372761515,1752751843154,-576.28,0.00018555,2]
[372761516,1752751843164,-460.0,0.00018556,2]
[372761517,1752751843174,-460.0,0.00018556,2]
[372761518,1752751843183,-460.0,0.00018556,2]
[372761519,1752751843193,-2034.08,0.00018556,2]
[372761520,1752751843203,-460.0,0.00018556,2]
[372761521,1752751843216,-908.51,0.00018556,2]
[372761522,1752751843226,-962.34,0.00018556,2]
[372761523,1752751843235,-4626.45,0.00018556,2]
[372761524,1752751843245,-810.85,0.00018556,2]
[372761525,1752751843254,-1245.54,0.00018556,2]
[372761526,1752751843264,-1500.0,0.00018568,2]
[372761527,1752751843273,-500.0,0.00018568,2]
[372761528,1752751843283,-298.29602581,0.00018568,2]
[372761529,1752751843292,-460.0,0.00018658,2]
[372761530,1752751843302,-460.0,0.00018658,2]
[372761531,1752751843311,-499.85,0.00018658,2]
[372761532,1752751843322,-151.0,0.00018659,2]
[372761533,1752751843335,-151.0,0.00018659,2]
[372761534,1752751843344,-151.0,0.00018659,2]
[372761538,1752751843493,-151.0,0.00018659,2]
[372761539,1752751843503,-151.0,0.00018659,2]
[372761540,1752751843513,-151.0,0.00018659,2]
[372761541,1752751843523,-151.0,0.00018659,2]
[372761542,1752751843532,-233.447378,0.00018659,2]
[372761543,1752751843542,-233.447378,0.00018659,2]
[372761544,1752751843552,-151.0,0.00018659,2]
[372761545,1752751843562,-504.237972,0.00018659,2]
[372761546,1752751843572,-504.237972,0.00018659,2]
[372761547,1752751843583,-163.047601,0.0001866,2]
[372761548,1752751843592,-163.047601,0.0001866,2]
[372761549,1752751843601,-228.224285,0.0001866,2]
[372761550,1752751843610,-228.224285,0.0001866,2]
[372761551,1752751843620,-1433.47,0.000187,2]
[372761552,1752751843629,-1200.0,0.00018769,2]
[372761553,1752751843638,-160.0,0.00018782,2]
[372761554,1752751843648,-1001.50123837,0.00018822,2]
[372761555,1752751843657,-500.91344477,0.00018822,2]
[372761556,1752751843666,-604.35,0.00018824,2]
[372761557,1752751843675,-1330.66,0.00018824,2]
[372761558,1752751843685,-1876.44,0.00018824,2]
[372761559,1752751843694,-2406.28,0.00018827,2]
[372761560,1752751843704,-915.21,0.00018827,2]
[372761561,1752751843713,-535.23,0.00018827,2]
[372761562,1752751843724,-2033.53,0.00018827,2]
[372761563,1752751843733,-460.0,0.00018827,2]
[372761564,1752751843743,-740.79,0.00018827,2]
[372761565,1752751843753,-475.95,0.00018827,2]
[372761566,1752751843762,-1059.14,0.00018827,2]
[372761567,1752751843771,-460.0,0.00018827,2]
[372761568,1752751843781,-630.62,0.00018827,2]
[372761569,1752751843791,-460.0,0.00018827,2]
[372761570,1752751843809,-484.65,0.00018827,2]
[372761571,1752751843819,-1182.61,0.00018829,2]
[372761572,1752751843828,-1133.33,0.00018829,2]
[372761573,1752751843837,-460.0,0.00018829,2]
[372761574,1752751843847,-460.0,0.00018829,2]
[372761575,1752751843856,-752.75,0.00018829,2]
[372761576,1752751843866,-460.0,0.00018829,2]
[372761577,1752751843875,-460.0,0.00018829,2]
[372761578,1752751843885,-460.0,0.00018829,2]
[372761579,1752751843894,-460.0,0.00018829,2]
[372761580,1752751843904,-595.36,0.00018829,2]
[372761581,1752751843913,-596.24,0.00018829,2]
[372761582,1752751843923,-536.44,0.00018829,2]
[372761583,1752751843933,-470.42,0.00018829,2]
[372761584,1752751843942,-460.0,0.00018829,2]
[372761585,1752751843952,-460.0,0.00018829,2]
[372761586,1752751843962,-3846.76,0.00018829,2]
[372761587,1752751843971,-599.58,0.00018829,2]
[372761588,1752751843981,-460.0,0.00018829,2]
[372761589,1752751843991,-1004.86,0.00018829,2]
[372761590,1752751844001,-460.0,0.00018829,2]
[372761591,1752751844011,-576.28,0.00018829,2]
[372761592,1752751844021,-460.0,0.0001883,2]
[372761593,1752751844031,-460.0,0.0001883,2]
[372761594,1752751844040,-460.0,0.0001883,2]
[372761595,1752751844050,-2034.08,0.0001883,2]
[372761596,1752751844060,-460.0,0.0001883,2]
[372761597,1752751844069,-908.51,0.0001883,2]
[372761598,1752751844079,-962.34,0.0001883,2]
[372761599,1752751844097,-4626.45,0.0001883,2]
[372761600,1752751844107,-810.85,0.0001883,2]
[372761601,1752751844116,-1245.54,0.0001883,2]
[372761602,1752751844126,-153.0,0.00018846,2]
[372761603,1752751844135,-153.0,0.00018846,2]
[372761604,1752751844144,-1461.19522023,0.00018846,2]
[372761605,1752751844154,-153.0,0.00018846,2]
[372761606,1752751844163,-153.0,0.00018846,2]
[372761607,1752751844172,-153.0,0.00018846,2]
[372761608,1752751844181,-153.0,0.00018846,2]
[372761609,1752751844191,-153.0,0.00018846,2]
[372761610,1752751844200,-153.0,0.00018846,2]
[372761611,1752751844210,-202.08182537,0.00018846,2]
[372761612,1752751844220,-2522.78,0.00018889,2]
[372761613,1752751844229,-3437.47208081,0.000189,2]
[372761614,1752751844239,-9335.88532758,0.000189,2]
[372761615,1752751844248,-303.00000303,0.000189,2]
[372761616,1752751844258,-460.0,0.00018932,2]
[372761617,1752751844268,-460.0,0.00018932,2]
[372761618,1752751844277,-499.85,0.00018932,2]
[372761619,1752751844287,-420.0,0.00018967,2]
[372761620,1752751844298,-905.17226633,0.00019,2]
[372761621,1752751844310,-30642.54379335,0.00019,20]
[372761622,1752751844322,-4000.0,0.00019042,2]
[372761623,1752751844338,-1680.0,0.00019061,2]
[372761624,1752751844350,-303.00000303,0.00019089,2]
[372761625,1752751844360,-1330.66,0.00019098,2]
[372761626,1752751844369,-1876.44,0.00019098,2]
[372761627,1752751844378,-2406.28,0.00019101,2]
[372761628,1752751844388,-915.21,0.00019101,2]
[372761629,1752751844397,-535.23,0.00019101,2]
[372761630,1752751844409,-2033.53,0.00019101,2]
[372761631,1752751844419,-460.0,0.00019101,2]
[372761632,1752751844428,-740.79,0.00019101,2]
[372761633,1752751844438,-475.95,0.00019101,2]
[372761634,1752751844447,-1059.14,0.00019101,2]
[372761635,1752751844457,-460.0,0.00019101,2]